Cogmind - Beta 9.2 @@@ ROGUE MODE // 2019.12.16 @ 19:11:42 Player: Exeight Result: Self-destructed Performance ------------- Evolutions (2) 1000 Regions Visited (5) 1000 Robots Destroyed (63) 315 Value Destroyed (1419) 1419 Prototype IDs (4) 80 Alien Tech Used (0) 0 Bonus (39) 39 TOTAL SCORE: 3853 Bonus ------- Follower Combat Kills 39 Cogmind --------- Core Integrity 245/550 Matter 300/300 Energy 100/100 System Corruption 0% Temperature Cool (0) Movement Core (150) Ox2 Location -8/Materials Parts ------- > --- POWER (1) -------- (None) > --- PROPULSION (4) --- Improved Flight Unit > --- UTILITY (4) ------ Medium Storage Unit Advanced Signal Interpreter > --- WEAPON (2) ------- (None) > --- INVENTORY (8) ---- Aluminum Leg Carbon-fiber Leg Hacking Suite Hacking Suite Shock Rifle Precision Beam Rifle Enhanced Autogun Peak State ------------ > --- POWER ------------ Light Ion Engine > --- PROPULSION ------- Aluminum Leg Aluminum Leg Flight Unit Improved Flight Unit > --- UTILITY ---------- Medium Storage Unit Experimental Sensor Array Advanced Signal Interpreter > --- WEAPON ----------- Katana > --- INVENTORY -------- Flight Unit Hacking Suite Hacking Suite Shock Rifle Precision Beam Rifle Enhanced Autogun [Rating: 21] Favorites ----------- Power Light Nuclear Core Engine Light Ion Engine Power Core Light Nuclear Core Propulsion Improved Aluminum Leg Treads Light Treads Leg Improved Aluminum Leg Flight Unit Improved Flight Unit Utility Medium Storage Unit Device Experimental Sensor Array Storage Medium Storage Unit Processor Advanced Signal Interpreter Protection Light Armor Plating Weapon Katana Energy Gun EM Pulse Gun Ballistic Gun Assault Rifle Ballistic Cannon Light Cannon Launcher Grenade Launcher Slashing Weapon Katana Build | -11 -10 -10 -9 -9 -8 ------- Run | Scr Mat Min Mat Min Mat Slots Evolved 4 | . . . 2 . 2 Power . | . . . . . . Propulsion 2 | . . . 1 . 1 Utility 2 | . . . 1 . 1 Weapon . | . . . . . . Parts Attached 51 | 6 10 3 11 9 12 Power 6 | 1 1 . 2 1 1 Engine 3 | 1 1 . . . 1 Core 3 | . . . 2 1 . Reactor . | . . . . . . Propulsion 18 | 2 2 . 6 2 6 Treads 2 | . . . 2 . . Leg 11 | 2 2 . 3 . 4 Wheel . | . . . . . . Hover . | . . . . . . Flight 5 | . . . 1 2 2 Utility 8 | 1 3 . . 1 3 Device 1 | . . . . . 1 Storage 4 | 1 1 . . 1 1 Processor 1 | . . . . . 1 Hackware . | . . . . . . Protection 2 | . 2 . . . . Artifact . | . . . . . . Weapon 19 | 2 4 3 3 5 2 Energy Gun 3 | . 1 1 . . 1 Energy Cannon . | . . . . . . Ballistic Gun 6 | 2 . . 2 1 1 Ballistic Cannon 2 | . 2 . . . . Launcher 5 | . 1 2 . 2 . Special Weapon . | . . . . . . Impact Weapon . | . . . . . . Slashing Weapon 3 | . . . 1 2 . Piercing Weapon . | . . . . . . Special Melee Weapon . | . . . . . . Unidentified Prototypes 4 | . . . 1 . 3 Parts Lost 22 | . 1 . 6 5 10 Power 5 | . 1 . 1 1 2 Propulsion 11 | . . . 3 2 6 Utility 2 | . . . 1 . 1 Weapon 4 | . . . 1 2 1 Highest Loss Streak 6 | . 1 . 5 5 6 Average Slot Usage (%) 69 | . 99 100 63 50 60 Engine 5 | . 13 14 . . 5 Core 5 | . . . 9 10 1 Treads 6 | . . . 12 12 . Leg 13 | . 28 28 11 . 11 Flight 5 | . . . . 9 15 Storage 11 | . 14 14 11 10 7 Processor 1 | . . . . . 7 Protection 4 | . 13 14 2 . . Energy Gun 1 | . 1 9 . . 1 Ballistic Gun 4 | . 12 . 3 . . Ballistic Cannon 3 | . 13 14 . . . Slashing Weapon 6 | . . . 10 6 9 Naked Turns . | . . . . . . Heaviest Build 22 | 12 19 20 22 19 16 Greatest Support 40 | 20 26 26 40 40 20 Greatest Overweight (x) 4 | 3 1 . 3 1 4 Average Overweight (x) . | 1 . . . . . Largest Inventory Capacity 8 | 6 8 8 8 8 8 Average Capacity 7 | 5 6 8 8 7 7 Most Carried 8 | 5 6 8 8 8 7 Average Carried 6 | 3 5 7 6 7 5 Final Capacity 8 | 6 8 8 8 4 8 Final Carried 8 | 2 6 8 6 3 7 Class Distribution -------------------- 95% | Mutant 4% | Scavenger-Mutant Dominant Class ---------------- Mutant | -10/Materials Mutant | -10/Mines Mutant | -9/Materials Mutant | -9/Mines Mutant | -8/Materials Resources | -11 -10 -10 -9 -9 -8 ----------- Run | Scr Mat Min Mat Min Mat Matter Collected 1203 | 229 390 91 219 102 172 Remotely . | . . . . . . Salvage Created 1757 | . 504 91 540 25 597 Parts 118 | . 30 6 40 3 39 Haulers Intercepted 4 | . 2 . 1 . 1 Recyclers Shooed 1 | . 1 . . . . Parts Field Recycled . | . . . . . . Retrieved Matter . | . . . . . . Parts Self-Destructed . | . . . . . . Prevented . | . . . . . . Kills | -11 -10 -10 -9 -9 -8 ------- Run | Scr Mat Min Mat Min Mat Combat Hostiles Destroyed 48 | . 12 5 17 1 13 Melee 28 | . . . 15 . 13 Guns 10 | . 5 2 2 1 . Cannons 5 | . 5 . . . . AOE 5 | . 2 3 . . . Classes Destroyed 8 | . 6 . 1 1 . Worker 3 | . 1 . . . 2 Tunneler 1 | . . . . 1 . Hauler 4 | . 2 . 1 . 1 Operator 4 | . 1 . 2 . 1 Watcher 3 | . 3 . . . . Swarmer 21 | . 3 3 10 . 5 Grunt 22 | . 9 2 5 . 6 Sentry 4 | . . . 2 . 2 Best Kill Streak 5 | . 5 5 5 1 4 Combat Bots Only 5 | . 4 5 4 1 4 Max Kills in Single Turn 3 | . 2 3 1 1 1 Gunslinging . | . . . . . . Exploded 3 | . 1 3 . . . Melee 1 | . . . 1 . 1 Uniques/NPCs Destroyed 1 | . . . . 1 . YI-UF0 (-9/Mines) Combat | -11 -10 -10 -9 -9 -8 -------- Run | Scr Mat Min Mat Min Mat Damage Taken 3126 | . 490 236 761 656 983 Core 740 | . 92 45 170 128 305 Absorbed by Shields . | . . . . . . Core Remaining (%) 56 | 100 . 45 . 25 . Volleys Fired 81 | . 56 6 6 13 . Largest 2 | . 2 2 2 2 . Hottest 75 | . 75 75 50 60 . Shots Fired 145 | . 112 12 7 14 . Gun 74 | . 56 5 7 6 . Cannon 60 | . 54 6 . . . Launcher 11 | . 2 1 . 8 . Special . | . . . . . . Kinetic 126 | . 107 6 7 6 . Thermal . | . . . . . . Explosive 11 | . 2 1 . 8 . Electromagnetic 8 | . 3 5 . . . Robot Hit Streak 8 | . 8 3 1 5 . Robot Miss Streak 7 | . 4 2 7 2 . Penetration Max . | . . . . . . Secondary Targets . | . . . . . . Shots Hit Robots 160 | . 70 5 36 13 36 Core Hits 86 | . 31 7 20 9 19 Critical Hits 4 | . 1 . . . 3 Critical Kills 2 | . . . . . 2 Critical Parts Destroyed 2 | . 1 . . . 1 Melee Attacks 108 | . . . 47 3 58 Impact . | . . . . . . Slashing 108 | . . . 47 3 58 Piercing . | . . . . . . Sneak Attacks 11 | . . . 4 1 6 Combat Hostiles 3 | . . . 1 . 2 Follow-up Attacks . | . . . . . . Damage Inflicted 4726 | . 1259 265 1417 276 1509 Guns 656 | . 465 37 27 127 . Cannons 494 | . 479 15 . . . Explosions 580 | . 315 212 . 53 . Melee 2995 | . . . 1390 96 1509 Ramming 1 | . . 1 . . . Kinetic 1074 | . 905 15 27 127 . Thermal 166 | . 166 . . . . Explosive 362 | . 97 212 . 53 . Electromagnetic 128 | . 91 37 . . . Impact . | . . . . . . Slashing 2995 | . . . 1390 96 1509 Piercing . | . . . . . . Highest Corruption . | . . . . . . Average Corruption . | . . . . . . Corruption Purged . | . . . . . . Overload Shots . | . . . . . . Overflow Damage 264 | . 81 14 152 . 17 Projectiles 5 | . 5 . . . . Explosions 90 | . 76 14 . . . Melee 169 | . . . 152 . 17 Knockbacks 10 | . 9 1 . . . Impact . | . . . . . . Kinetic 10 | . 9 1 . . . Secondary . | . . . . . . Self-Inflicted Damage 115 | . 87 27 . 1 . Shots 4 | . 2 1 . 1 . Rammed 1 | . . 1 . . . Targets Rammed 1 | . . 1 . . . Kicked . | . . . . . . Crushed . | . . . . . . Highest Temperature 144 | . 127 144 . . . Average Temperature 28 | . 21 76 . . . Received Heat Transfer 762 | . 177 63 180 . 342 Siege Activations . | . . . . . . Robots Corrupted . | . . . . . . Combat Hostiles . | . . . . . . Parts Fried . | . . . . . . Impact Corruptions . | . . . . . . Robots Melted . | . . . . . . Combat Hostiles . | . . . . . . Parts Melted . | . . . . . . Heat Transferred 100 | . 100 . . . . Parts Sabotaged . | . . . . . . Parts Stolen . | . . . . . . Parts Stripped . | . . . . . . Power Chain Reactions . | . . . . . . Missiles Intercepted . | . . . . . . Alert | -11 -10 -10 -9 -9 -8 ------- Run | Scr Mat Min Mat Min Mat Peak Influence 279 | . 279 162 253 5 153 Average Influence 67 | . 95 124 108 . 50 Maximum Alert Level 1 | . 1 . 1 . . Low Security (%) 94 | 100 97 100 83 100 100 Level 1 5 | . 2 . 16 . . Level 2 . | . . . . . . Level 3 . | . . . . . . Level 4 . | . . . . . . Level 5 . | . . . . . . High Security . | . . . . . . Max Security . | . . . . . . Squads Dispatched 6 | . 2 . 2 . 2 Investigation 1 | . 1 . . . . Extermination . | . . . . . . Reinforcement 5 | . 1 . 2 . 2 Assault . | . . . . . . Garrison . | . . . . . . Intercept . | . . . . . . Construction Impeded . | . . . . . . Haulers Reinforced . | . . . . . . Stealth | -11 -10 -10 -9 -9 -8 --------- Run | Scr Mat Min Mat Min Mat Distress Signals 4 | . 2 . 1 . 1 Communications Jammed . | . . . . . . Distress Signals . | . . . . . . Times Spotted 86 | . 21 8 24 5 28 Peak Tracking Total 6 | . 4 5 6 4 5 Tactical Retreats 11 | . 2 . 4 . 5 Traps | -11 -10 -10 -9 -9 -8 ------- Run | Scr Mat Min Mat Min Mat Traps Triggered 1 | . 1 . . . . Indirectly . | . . . . . . Trap Hack Attempts . | . . . . . . Triggered . | . . . . . . Disarmed . | . . . . . . Reprogrammed . | . . . . . . Reused . | . . . . . . Traps Extracted . | . . . . . . Installed 1 | . . . . . 1 Triggered . | . . . . . . Machines | -11 -10 -10 -9 -9 -8 ---------- Run | Scr Mat Min Mat Min Mat Machines Disabled 3 | . 3 . . . . Max in Single Turn 2 | . 2 . . . . Machines Sabotaged . | . . . . . . Garrisons Compromised . | . . . . . . Overloaded Fab Kills . | . . . . . . Fab Network Shutdowns . | . . . . . . Hacking | -11 -10 -10 -9 -9 -8 --------- Run | Scr Mat Min Mat Min Mat Machines Accessed 11 | . 5 . 3 . 3 Terminals 10 | . 5 . 3 . 2 Fabricators . | . . . . . . Repair Stations . | . . . . . . Recycling Units 1 | . . . . . 1 Scanalyzers . | . . . . . . Garrison Access . | . . . . . . Total Hacks 16 | . 8 . 4 . 4 Successful 16 | . 8 . 4 . 4 Failed . | . . . . . . Catastrophic . | . . . . . . Database Lockouts . | . . . . . . Manual 14 | . 8 . 4 . 2 Terminals 15 | . 8 . 4 . 3 Fabricators . | . . . . . . Repair Stations . | . . . . . . Recycling Units 1 | . . . . . 1 Scanalyzers . | . . . . . . Garrison Access . | . . . . . . Terminal Hacks 5 | . 3 . 1 . 1 Level Access Points 1 | . 1 . . . . Terminal Index 2 | . 1 . 1 . . Zone Layout 2 | . 1 . . . 1 Fabricator Hacks . | . . . . . . Repair Station Hacks . | . . . . . . Recycling Unit Hacks 1 | . . . . . 1 Report Inventory 1 | . . . . . 1 Scanalyzer . | . . . . . . Garrison Access Hacks . | . . . . . . Unauthorized Hacks 20 | . 10 . 6 . 4 Terminals 10 | . 5 . 3 . 2 Track 10 | . 5 . 3 . 2 Fabricators . | . . . . . . Repair Stations . | . . . . . . Recycling Units . | . . . . . . Scanalyzers . | . . . . . . Garrison Access . | . . . . . . Data Cores Recovered . | . . . . . . Used . | . . . . . . Hacking Detections 2 | . 2 . . . . Full Trace Events . | . . . . . . Feedback Events . | . . . . . . Feedback Blocked . | . . . . . . Robot Schematics Acquired . | . . . . . . Robots Built . | . . . . . . Matter . | . . . . . . Time . | . . . . . . Total Robot Build Rating . | . . . . . . Part Schematics Acquired . | . . . . . . Parts Built . | . . . . . . Matter . | . . . . . . Time . | . . . . . . Total Part Build Rating . | . . . . . . Parts Repaired . | . . . . . . Time . | . . . . . . Parts Recycled . | . . . . . . Recycled Matter . | . . . . . . Retrieved Matter . | . . . . . . Retrieved Components . | . . . . . . Parts Scanalyzed . | . . . . . . Part Schematics Acquired . | . . . . . . Parts Damaged . | . . . . . . Bothacking | -11 -10 -10 -9 -9 -8 ------------ Run | Scr Mat Min Mat Min Mat Used RIF Installer . | . . . . . . Robots Hacked . | . . . . . . Non-combat . | . . . . . . Combat . | . . . . . . Robot Hacks Applied . | . . . . . . Relay Couplers Released . | . . . . . . Robots Rewired . | . . . . . . Allies Hacked . | . . . . . . Hacks Repelled . | . . . . . . Allies | -11 -10 -10 -9 -9 -8 -------- Run | Scr Mat Min Mat Min Mat Total Allies 1 | . . 1 . . . Largest Group 1 | . . 1 . . . Highest-Rated Group 31 | . . 31 . . . Highest-Rated Ally 31 | . . 31 . . . Total Orders . | . . . . . . Ally Attacks 8 | . . 8 . . . Total Damage 146 | . . 146 . . . Kills 1 | . . 1 . . . Allies Corrupted . | . . . . . . Allies Melted . | . . . . . . Intel | -11 -10 -10 -9 -9 -8 ------- Run | Scr Mat Min Mat Min Mat Robot Analysis Total . | . . . . . . Derelict Logs Recovered . | . . . . . . Drone Launches . | . . . . . . Drone Recoveries . | . . . . . . Exploration | -11 -10 -10 -9 -9 -8 ------------- Run | Scr Mat Min Mat Min Mat Turns Passed 5157 | 72 1244 210 1449 1230 952 Spaces Moved 2863 | 47 701 153 533 893 536 Core 49 | 35 . . 6 . 8 Treads 725 | . . . 320 405 . Legs 1421 | 12 701 153 207 . 348 Wheels . | . . . . . . Hover . | . . . . . . Flight 668 | . . . . 488 180 Fastest Speed 34 | 50 120 120 120 34 34 Average Speed 123 | 128 120 120 144 125 100 Slowest Speed 250 | 200 150 120 200 160 250 Overloaded Moves . | . . . . . . Propulsion Burnouts . | . . . . . . Robots Hopped . | . . . . . . Cave-ins Triggered 1 | . . . . . 1 Exploration Rate (%) 44 | 3 87 34 24 95 23 Regions Visited 5 Branch Regions 2 Pre-discovered Areas 1 | . . . . 1 . Known Exits Taken 1 | . . 1 . . . Unknown Exits Taken 4 | 1 1 . 1 1 . Scrap Searched 2 | . . . . 2 . Spaces Dug 10 | . . . . 2 8 Terrain Destroyed 79 | . 37 8 . 26 8 Melee 10 | . . . . 2 8 Projectile . | . . . . . . AOE 69 | . 37 8 . 24 . Actions | -11 -10 -10 -9 -9 -8 --------- Run | Scr Mat Min Mat Min Mat Total 4189 | 57 991 165 1135 981 860 Wait 1015 | . 209 1 516 52 237 Move 2857 | 46 700 152 532 892 535 Hop . | . . . . . . Pick Up 46 | 5 9 2 11 7 12 Fast Attach 14 | 3 3 . 3 2 3 Attach 24 | 3 2 . 5 6 8 Detach 2 | . . . . . 2 Swap 13 | . 5 3 3 1 1 Drop 26 | . 7 . 12 5 2 Fire 81 | . 56 6 6 13 . Melee 108 | . . . 47 3 58 Ram . | . . . . . . Kick 1 | . . 1 . . . Crush . | . . . . . . Escape Stasis 1 | . . . . . 1 Rewire . | . . . . . . Trap 1 | . . . . . 1 Miscellaneous . | . . . . . . Route ------- -11/Scrapyard -10/Materials (discovered 5 exits: *Mat x3 / [*Min x2]) -10/Mines (discovered 2 exits: *Mat x2) -9/Materials (discovered 2 exits: *Mat / [*Min]) -9/Mines (discovered 3 exits: *Mat x2 / [*Exi]) -8/Materials History --------- Turn | Location | Event 3 | -11/Scrapyard | Discovered new exit (range 15) 73 | -11/Scrapyard | Entered Materials 245 | -10/Materials | Discovered new exit (range 16) 308 | -10/Materials | Build established: Mutant 347 | -10/Materials | Discovered new exit (range 12) 349 | -10/Materials | Identified exit to Materials 1258 | -10/Materials | Discovered new exit (range 8) 1317 | -10/Materials | Entered Mines 1321 | -10/Mines | Core integrity fell below 50% 1345 | -10/Mines | Received a Mining Laser from a helpful Derelict 1404 | -10/Mines | Discovered exit to Materials (range 7) 1467 | -10/Mines | Assembled infested the area 1472 | -10/Mines | Assisted by a Guerilla fighting off Assembled 1509 | -10/Mines | Discovered exit to Materials (range 15) 1527 | -10/Mines | Entered Materials 1527 | -9/Materials | Evolved 2 slots: Propulsion x1, Utility x1 2089 | -9/Materials | Lost 5 parts (1p3n1w) 2382 | -9/Materials | Discovered new exit (range 12) 2622 | -9/Materials | Discovered new exit (range 3) 2976 | -9/Materials | Entered Mines 3160 | -9/Mines | Assisted by bots powering up and referring to "LRC-V3" 3198 | -9/Mines | Deemed a non-threat by the Exiles lab entrance 3198 | -9/Mines | Discovered new exit (range 5) 3428 | -9/Mines | Found a damaged Exp. Sensor Array with a note attached 3431 | -9/Mines | Found Prototype Device 3526 | -9/Mines | Discovered new exit (range 14) 3555 | -9/Mines | Learned location of Storage (-8) 3659 | -9/Mines | Core integrity fell below 50% 3684 | -9/Mines | Destroyed YI-UF0 3709 | -9/Mines | Lost 5 parts (1p2n2w) 3758 | -9/Mines | Found a hidden stash of uninstalled traps 4068 | -9/Mines | Discovered new exit (range 9) 4206 | -9/Mines | Entered Materials 4206 | -8/Materials | Evolved 2 slots: Propulsion x1, Utility x1 4962 | -8/Materials | Identified Exp. Sensor Array 5076 | -8/Materials | Crushed by falling debris 5154 | -8/Materials | Core integrity fell below 50% 5158 | -8/Materials | Self-destructed Last Messages --------------- R-06 Scavenger collects Lgt. Ion Engine. Identified Exp. Sensor Array. Acquired 6 matter. Acquired 14 matter. K-01 Serf cleans the Electrolysis Chamber. W-25 Informer sends out distress signal. Y-45 Defender destroyed. [Achievement: Part-time Excavator] The unstable cave ceiling collapses. Crushed by falling debris. Exp. Sensor Array destroyed. Lgt. Angular Momentum Engine severed. Flight Unit destroyed. Lgt. Ion Engine destroyed. Aluminum Leg destroyed. G-50 Soldier destroyed. Acquired Carbon-fiber Leg. Imp. Heat Sink severed. G-47 Trooper destroyed. Katana destroyed. Map ----- +----------------------------------------------------+ | | | | | | | | | | | ?????????????????????????????????????????????????? | | ??????###############?########???????????????????? | | ??????# " #?#//**!!#?######????????????? | | ??????# """ """ ###?#//**!!#?# ] #????????????? | | ??????# """"""""" #???# #?# #????######### | | ??????# """"" ##### ###?#[ ###### | | ??????# ! # #???# # ## | | ??????# # #####+##### # ## """ | | ??????# !+% # ] # "" # ## """ | | ??????#"########### # # "T +%% ## """ | | ??????#" # # # ] # "" # ## "Y" | | ??# ### """"" # # + # ## """ | | ??# """"" # + """ """ ###### ## | | ??# """"" # # """ """ #???# = ###+##### | | +## ??# !# # """ """ #???# ## | | ??## ???# """"" # # #???# T | | ???# ???# """"" + ####+######???# ## | | ???# ???# """"" # #??# #????????# ####k #? | | ???# ???# # #??#*#???????####+###### #? | | ???# ????#####+#### #??#!#???????# # #? | | ??? ####@#???????# # #? | | ??? =%*#???????# # #? | | ??? g[%#???????# # #? | | ??? ??""" ###########???????# """ """ # #? | | ???????"" #?????? #?????????# """ """ # ## | | ????????" [[[ #?????? #?????????# """ """ # # | | ??????? [[ #?????? #?????????# # # | | ??????? [[ #?????? #?????????########### + | | ????????" #?????? #???????????????????# # | | ????????? #??????##?????????????####### ^ + | | ????????" ?????????????????????# % % # | | ???????? ?????????????????????# ##+###+### | | ?????????? #?????????????????????# ##%% = | | ????????????#/##???????????????????####+## %=! | | ???????????????????????????????????# # %!% | | ???????????????????????????????????# T # | | ???????????????????????????????????# # """ """ | | ???????????????????????????????????# """ # """ """ | | ???????????????????????????????????# """k# """ """ | | ???????????????????????????????????# """ # | | ???????????????????????????????????# ######### | | ???????????????????????????????????#####+#???????? | | ???????????????????????????????????????u ???????? | | ???????????????????????????????????????? ???????? | | ?????????????????????????????????????u??Y ???????? | +----------------------------------------------------+ Best States ------------- Heat Dissipation 31 Energy Generation 14 Energy Capacity 250 Matter Stores 300 Matter Capacity 300 Sight Range 16 Robot Scan Range 30 Terrain Scan Density 10 Armor Coverage 150 Evasion (%) 63 Recoil Reduction 2 Item Schematics ----------------- None Robot Schematics ------------------ None Fabricated ------------ Nothing Alien Tech Used ----------------- None Achievements -------------- Part-time Excavator Challenges ------------ None Game ------ Seed StructuralPulseHammer Manual? 0 Play Time 01:32:17 Cumulative 24.1 hours Start 2019.12.16 @ 07:21:51 End 2019.12.16 @ 19:11:42 Sessions 1 Manual Loads 0 Difficulty Rogue Special Mode None Game No. 33 Rogue 33 Adventurer 0 Explorer 0 Win Type - Total 0 Types 0/0/0/0/0/0/0 Lore% 13 Gallery% 18 Achievement% 19 Wizard Run 0 Options --------- ASCII 0 Keyboard 0 Movement Mouse Keybinds 0 Fullscreen 0 Font 28/SmallcapsGlow Map View 76x50 Tactical HUD 0 Map Filters NONE Filters NONE Steam 1 RUN: 45b2034d-bbf7-4e15-aced-616a627646e3